Workbook

Sheet Sheet1
B1: Allocations Table | P1: Budgets Table
B2: Recipient | C2: Budget source | D2: 2021 | E2: 2022 | F2: 2023 | G2: 2024 | H2: 2025 | I2: 2026 | J2: 2027 | K2: 2028 | L2: 2029 | M2: 2030 | N2: 10-year total | P2: Budget source | Q2: 2021 | R2: 2022 | S2: 2023 | T2: 2024 | U2: 2025 | V2: 2026 | W2: 2027 | X2: 2028 | Y2: 2029 | Z2: 2030 | AA2: 10-year total
B3: R1 | C3: B19 | D3: 3500000 | E3: 1000000 | F3: 10000 | N3: =SUM(Allocations[[#This Row],[2021]:[2030]]) -> 4510000 | P3: B19 | Q3: 4000000 | R3: 2000000 | S3: 1000000 | T3: 1000000 | U3: 1000000 | V3: 1000000 | W3: 1000000 | X3: 1000000 | Y3: 1000000 | Z3: 1000000 | AA3: =SUM(AvailableBudgets[[#This Row],[2021]:[2030]]) -> 14000000
B4: R2 | C4: B221 | D4: 5000 | E4: 195000 | F4: 150000 | G4: 50000 | N4: =SUM(Allocations[[#This Row],[2021]:[2030]]) -> 400000 | P4: B221 | Q4: 250000 | R4: 250000 | S4: 250000 | T4: 250000 | AA4: =SUM(AvailableBudgets[[#This Row],[2021]:[2030]]) -> 1000000
B5: R3 | C5: B331 | E5: 5000 | F5: 195000 | G5: 150000 | H5: 50000 | N5: =SUM(Allocations[[#This Row],[2021]:[2030]]) -> 400000 | P5: B331 | Q5: 10000000 | R5: 10000000 | S5: 10000000 | T5: 10000000 | U5: 10000000 | V5: 10000000 | AA5: =SUM(AvailableBudgets[[#This Row],[2021]:[2030]]) -> 60000000
B6: R4 | C6: B43 | G6: 5000 | H6: 195000 | I6: 150000 | J6: 25000 | N6: =SUM(Allocations[[#This Row],[2021]:[2030]]) -> 375000 | P6: B43 | Q6: 200000 | R6: 200000 | S6: 200000 | T6: 200000 | U6: 200000 | V6: 200000 | W6: 200000 | X6: 200000 | Y6: 200000 | Z6: 200000 | AA6: =SUM(AvailableBudgets[[#This Row],[2021]:[2030]]) -> 2000000
B7: R5 | C7: B331 | E7: 5000 | F7: 195000 | G7: 150000 | H7: 50000 | N7: =SUM(Allocations[[#This Row],[2021]:[2030]]) -> 400000 | P7: AB221 | Q7: 250000 | R7: 250000 | S7: 250000 | T7: 250000 | U7: 250000 | V7: 250000 | W7: 250000 | X7: 250000 | Y7: 250000 | Z7: 250000 | AA7: =SUM(AvailableBudgets[[#This Row],[2021]:[2030]]) -> 2500000
B8: R5 | C8: B19 | F8: 500 | G8: 19500 | H8: 15000 | I8: 5000 | N8: =SUM(Allocations[[#This Row],[2021]:[2030]]) -> 40000 | P8: Total | Q8: =SUBTOTAL(109,AvailableBudgets[2021]) -> 14700000 | R8: =SUBTOTAL(109,AvailableBudgets[2022]) -> 12700000 | S8: =SUBTOTAL(109,AvailableBudgets[2023]) -> 11700000 | T8: =SUBTOTAL(109,AvailableBudgets[2024]) -> 11700000 | U8: =SUBTOTAL(109,AvailableBudgets[2025]) -> 11450000 | V8: =SUBTOTAL(109,AvailableBudgets[2026]) -> 11450000 | W8: =SUBTOTAL(109,AvailableBudgets[2027]) -> 1450000 | X8: =SUBTOTAL(109,AvailableBudgets[2028]) -> 1450000 | Y8: =SUBTOTAL(109,AvailableBudgets[2029]) -> 1450000 | Z8: =SUBTOTAL(109,AvailableBudgets[2030]) -> 1450000 | AA8: =SUBTOTAL(109,AvailableBudgets[10-year total]) -> 79500000
B9: R6 | C9: B221 | H9: 5000 | I9: 195000 | J9: 150000 | K9: 50000 | N9: =SUM(Allocations[[#This Row],[2021]:[2030]]) -> 400000
B10: R7 | C10: B331 | D10: 500000 | E10: 12500000 | F10: 3500000 | G10: 1000000 | N10: =SUM(Allocations[[#This Row],[2021]:[2030]]) -> 17500000
B11: R8 | C11: B43 | E11: 500 | F11: 19500 | G11: 15000 | H11: 5000 | N11: =SUM(Allocations[[#This Row],[2021]:[2030]]) -> 40000
B12: R8 | C12: B19 | E12: 500 | F12: 19500 | G12: 15000 | H12: 5000 | N12: =SUM(Allocations[[#This Row],[2021]:[2030]]) -> 40000
B13: R9 | C13: B221 | I13: 5000 | J13: 195000 | K13: 150000 | L13: 50000 | N13: =SUM(Allocations[[#This Row],[2021]:[2030]]) -> 400000
B14: R10 | C14: B331 | G14: 5000 | H14: 250000 | I14: 150000 | J14: 50000 | N14: =SUM(Allocations[[#This Row],[2021]:[2030]]) -> 455000
B15: R10 | C15: B221 | D15: 500 | E15: 19500 | F15: 15000 | G15: 5000 | N15: =SUM(Allocations[[#This Row],[2021]:[2030]]) -> 40000
B16: Total | D16: =SUBTOTAL(109,Allocations[2021]) -> 4005500 | E16: =SUBTOTAL(109,Allocations[2022]) -> 13725500 | F16: =SUBTOTAL(109,Allocations[2023]) -> 4104500 | G16: =SUBTOTAL(109,Allocations[2024]) -> 1414500 | H16: =SUBTOTAL(109,Allocations[2025]) -> 575000 | I16: =SUBTOTAL(109,Allocations[2026]) -> 505000 | J16: =SUBTOTAL(109,Allocations[2027]) -> 420000 | K16: =SUBTOTAL(109,Allocations[2028]) -> 200000 | L16: =SUBTOTAL(109,Allocations[2029]) -> 50000 | M16: =SUBTOTAL(109,Allocations[2030]) -> 0 | N16: =SUBTOTAL(109,Allocations[10-year total]) -> 25000000
B19: Features of the Allocations table: - Will grow to many more rows, amounts, budgets and recipients, but normally always within a 10 year profile (former years may be hidden or grouped and hidden for ease of reference if need be). - The actual table cannot be adjusted to move the years columns to rows, but I can add more columns if need be. - Recipients may have multiple lines if they're receiving money from more than one budget source (e.g., R5, R8, R10). This and the amounts can change by the month. - The "Budget source" column is a dropdown pick list, auto-updated via power query when a new budget source comes online. | P19: Features of the Budgets table: - Will grow slightly over time with more budgets identified 1 to 3 times per year as they come on line. - The actual table cannot be adjusted to move the years columns to rows, but I can add more columns if need be. - Can adjust table if need be, though prefer to keep separate from other tables. - The "Budget source" column may be elaborated upon to be more explanatory via another column. This could also be achieved via a 'bridge table' in data model, but for the current purpose, I am keeping it as the unique entries table (many to one).
B23: Features of the table I want to have: - Overall look as outlined to the right. - Automatically updates without having to adjust it manually; just uses the data model and power query to update as new budgets, recipients and amounts are added, removed, or otherwise changed over time. - Uses Power Pivot / Power Query to facilitate automation and expansion of this regular tracking activity, reducing manual table creation and inherent mistakes associated with that. | I23: 2021 | J23: 2022 | K23: 2023 | L23: 2024 | M23: 2025 | N23: 2026 | O23: 2027 | P23: 2028 | Q23: 2029 | R23: 2030 | S23: 10-year total
G24: Budget B19 | H24: Available | I24: (as drawn from Budgets table) | S24: 0
H25: Allocated | I25: (as drawn from sum total of Budget source column in Allocations table) | S25: 0
H26: Remaining / Variance | I26: (calculation of available subtract allocated) | S26: 0
G28: Budget B221 | H28: Available | I28: (as drawn from Budgets table) | S28: 0
H29: Allocated | I29: (as drawn from sum total of Budget source column in Allocations table) | S29: 0
H30: Remaining / Variance | I30: (calculation of available subtract allocated) | S30: 0
G32: Budget B331 | H32: Available | I32: (as drawn from Budgets table) | S32: 0
H33: Allocated | I33: (as drawn from sum total of Budget source column in Allocations table) | S33: 0
H34: Remaining / Variance | I34: (calculation of available subtract allocated) | S34: 0
G36: Budget ….. | H36: Available | I36: (as drawn from Budgets table) | S36: 0
H37: Allocated | I37: (as drawn from sum total of Budget source column in Allocations table) | S37: 0
H38: Remaining / Variance | I38: (calculation of available subtract allocated) | S38: 0
G39: ….. | H39: …..
G40: Grand Totals | H40: Available | I40: (as drawn from Budgets table or summed based on filters above) | S40: 0
H41: Allocated | I41: (as drawn from sum total of Budget source column in Allocations table, or summed based on filters above) | S41: 0
H42: Remaining / Variance | I42: (calculation of available subtract allocated, derived from above amounts) | S42: 0
